Workbook

Sheet Sheboygan North Invite 2021
B1: First Name | C1: Last Name | D1: Team | E1: Round 1 Front | F1: Back | G1: Total | I1: Round 2 Front | J1: Back | K1: Total | L1: Two - Day Total
A2: 1 | B2: Jo | C2: Baranczyk | D2: Bay Port Girls | E2: 38 | F2: 38 | G2: 76 | I2: 34 | J2: 34 | K2: 68 | L2: =SUM(G2+K2) -> 144
A3: =A2+1 -> 2 | B3: Ben | C3: Pausha | D3: Kettle Moraine | E3: 38 | F3: 38 | G3: 76 | I3: 32 | J3: 37 | K3: 69 | L3: =SUM(G3+K3) -> 145
A4: =A3+1 -> 3 | B4: Ty | C4: Mueller | D4: Homestead | E4: 36 | F4: 37 | G4: 73 | I4: 35 | J4: 40 | K4: 75 | L4: =SUM(G4+K4) -> 148
A5: 4 | B5: Jacob | C5: Beckman | D5: Middleton Boys | E5: 37 | F5: 37 | G5: 74 | I5: 35 | J5: 40 | K5: 75 | L5: =SUM(G5+K5) -> 149
A6: 5 | B6: Jackson | C6: Vinopal | D6: Kettle Moraine | E6: 37 | F6: 38 | G6: 75 | I6: 37 | J6: 38 | K6: 75 | L6: =SUM(G6+K6) -> 150
A7: 6 | B7: William | C7: Hemauer | D7: Marquette | E7: 34 | F7: 41 | G7: 75 | I7: 42 | J7: 35 | K7: 77 | L7: =SUM(G7+K7) -> 152
A8: 7 | B8: Addison | C8: Raimer | D8: Slinger | E8: 34 | F8: 40 | G8: 74 | I8: 38 | J8: 41 | K8: 79 | L8: =SUM(G8+K8) -> 153
A9: 8 | B9: Jackson | C9: Cain | D9: Kettle Moraine | E9: 37 | F9: 38 | G9: 75 | I9: 40 | J9: 38 | K9: 78 | L9: =SUM(G9+K9) -> 153
A10: 9 | B10: Glenna | C10: Sanderson | D10: Middleton Girls | E10: 40 | F10: 37 | G10: 77 | I10: 40 | J10: 36 | K10: 76 | L10: =SUM(G10+K10) -> 153
A11: 10 | B11: Luke | C11: Ladd | D11: Homestead | E11: 39 | F11: 41 | G11: 80 | I11: 36 | J11: 38 | K11: 74 | L11: =SUM(G11+K11) -> 154
A12: 11 | B12: Ellie | C12: Frisch | D12: Middleton Girls | E12: 42 | F12: 37 | G12: 79 | I12: 38 | J12: 37 | K12: 75 | L12: =SUM(G12+K12) -> 154
A13: 12 | B13: Alec | C13: Sosnowski | D13: Middleton Boys | E13: 38 | F13: 40 | G13: 78 | I13: 35 | J13: 41 | K13: 76 | L13: =SUM(G13+K13) -> 154
A14: 13 | B14: Jack | C14: Weisenberger | D14: De Pere | E14: 39 | F14: 40 | G14: 79 | I14: 38 | J14: 38 | K14: 76 | L14: =SUM(G14+K14) -> 155
A15: 14 | B15: Dain | C15: Johnson | D15: Middleton Boys | E15: 39 | F15: 40 | G15: 79 | I15: 38 | J15: 38 | K15: 76 | L15: =SUM(G15+K15) -> 155
A16: 15 | B16: Ryan | C16: Darling | D16: Notre Dame | E16: 38 | F16: 40 | G16: 78 | I16: 36 | J16: 41 | K16: 77 | L16: =SUM(G16+K16) -> 155
A17: 16 | B17: Will | C17: Summers | D17: Slinger | E17: 39 | F17: 37 | G17: 76 | I17: 36 | J17: 44 | K17: 80 | L17: =SUM(G17+K17) -> 156
A18: 17 | B18: Ava | C18: Wittstock | D18: Sheboygan North Girls | E18: 38 | F18: 40 | G18: 78 | I18: 39 | J18: 39 | K18: 78 | L18: =SUM(G18+K18) -> 156
A19: 18 | B19: Ben | C19: Hilbelink | D19: Menomonee Falls | E19: 41 | F19: 40 | G19: 81 | I19: 35 | J19: 40 | K19: 75 | L19: =SUM(G19+K19) -> 156
A20: 19 | B20: Braeden | C20: Resnick | D20: Rice Lake | E20: 37 | F20: 41 | G20: 78 | I20: 43 | J20: 36 | K20: 79 | L20: =SUM(G20+K20) -> 157
A21: 20 | B21: Mason | C21: Schmidtke | D21: Sheboygan North | E21: 39 | F21: 39 | G21: 78 | I21: 41 | J21: 38 | K21: 79 | L21: =SUM(G21+K21) -> 157
A22: 21 | B22: Sebastian | C22: Kasun | D22: Marquette | E22: 35 | F22: 42 | G22: 77 | I22: 38 | J22: 42 | K22: 80 | L22: =SUM(G22+K22) -> 157
A23: 22 | B23: KC | C23: Nickel | D23: Waunakee | E23: 41 | F23: 39 | G23: 80 | I23: 35 | J23: 43 | K23: 78 | L23: =SUM(G23+K23) -> 158
A24: 23 | B24: Avery | C24: Dudra | D24: Bay Port Girls | E24: 45 | F24: 40 | G24: 85 | I24: 36 | J24: 38 | K24: 74 | L24: =SUM(G24+K24) -> 159
A25: 24 | B25: Amanda | C25: Beckman | D25: Middleton Girls | E25: 38 | F25: 40 | G25: 78 | I25: 42 | J25: 39 | K25: 81 | L25: =SUM(G25+K25) -> 159
A26: 25 | B26: Logan | C26: Pechinski | D26: Stevens Point | E26: 43 | F26: 41 | G26: 84 | I26: 39 | J26: 37 | K26: 76 | L26: =SUM(G26+K26) -> 160
A27: 26 | B27: Sam | C27: Sonsalla | D27: Brookfield Central | E27: 39 | F27: 40 | G27: 79 | I27: 43 | J27: 38 | K27: 81 | L27: =SUM(G27+K27) -> 160
A28: 27 | B28: Ben | C28: Busick | D28: De Pere | E28: 40 | F28: 43 | G28: 83 | I28: 39 | J28: 38 | K28: 77 | L28: =SUM(G28+K28) -> 160
A29: 28 | B29: Robby | C29: Warda | D29: Middleton Boys | E29: 43 | F29: 41 | G29: 84 | I29: 36 | J29: 40 | K29: 76 | L29: =SUM(G29+K29) -> 160
A30: 29 | B30: Vivian | C30: Cressman | D30: Middleton Girls | E30: 40 | F30: 45 | G30: 85 | I30: 39 | J30: 37 | K30: 76 | L30: =SUM(G30+K30) -> 161
A31: 30 | B31: Matthew | C31: Paulson | D31: Mukwonago | E31: 39 | F31: 45 | G31: 84 | I31: 37 | J31: 40 | K31: 77 | L31: =SUM(G31+K31) -> 161
A32: 31 | B32: Joe | C32: Fricker | D32: Homestead | E32: 41 | F32: 40 | G32: 81 | I32: 40 | J32: 40 | K32: 80 | L32: =SUM(G32+K32) -> 161
A33: 32 | B33: Sam | C33: Hurley | D33: Ashwaubenon | E33: 38 | F33: 40 | G33: 78 | I33: 44 | J33: 39 | K33: 83 | L33: =SUM(G33+K33) -> 161
A34: 33 | B34: Jake | C34: Jazgar | D34: Ashwaubenon | E34: 37 | F34: 37 | G34: 74 | I34: 44 | J34: 43 | K34: 87 | L34: =SUM(G34+K34) -> 161
A35: 34 | B35: Alex | C35: Koenig | D35: Kettle Moraine | E35: 40 | F35: 43 | G35: 83 | I35: 37 | J35: 42 | K35: 79 | L35: =SUM(G35+K35) -> 162
A36: 35 | B36: Alex | C36: Weiss | D36: Edgewood | E36: 40 | F36: 42 | G36: 82 | I36: 37 | J36: 43 | K36: 80 | L36: =SUM(G36+K36) -> 162
A37: 36 | B37: Michael | C37: Addie | D37: Hamilton | E37: 41 | F37: 39 | G37: 80 | I37: 42 | J37: 40 | K37: 82 | L37: =SUM(G37+K37) -> 162
A38: 37 | B38: Logan | C38: Ertl | D38: Wauwatosa East | E38: 43 | F38: 41 | G38: 84 | I38: 40 | J38: 39 | K38: 79 | L38: =SUM(G38+K38) -> 163
A39: 38 | B39: Adam | C39: Soczka | D39: Wauwatosa East | E39: 39 | F39: 39 | G39: 78 | I39: 42 | J39: 45 | K39: 87 | L39: =SUM(G39+K39) -> 165
A40: 39 | B40: Wyatt | C40: Pfeiffer | D40: Fond du Lac | E40: 45 | F40: 43 | G40: 88 | I40: 38 | J40: 40 | K40: 78 | L40: =SUM(G40+K40) -> 166
A41: 40 | B41: Sam | C41: Dethloff | D41: Menomonee Falls | E41: 40 | F41: 42 | G41: 82 | I41: 39 | J41: 45 | K41: 84 | L41: =SUM(G41+K41) -> 166
A42: 41 | B42: Jolie | C42: Guyette | D42: De Pere Girls | E42: 41 | F42: 45 | G42: 86 | I42: 39 | J42: 42 | K42: 81 | L42: =SUM(G42+K42) -> 167
A43: 42 | B43: Connor | C43: Keenan | D43: Waunakee | E43: 40 | F43: 45 | G43: 85 | I43: 43 | J43: 39 | K43: 82 | L43: =SUM(G43+K43) -> 167
A44: 43 | B44: Ethan | C44: Arndt | D44: Edgewood | E44: 43 | F44: 41 | G44: 84 | I44: 38 | J44: 45 | K44: 83 | L44: =SUM(G44+K44) -> 167
A45: 44 | B45: John | C45: Callahan | D45: Neenah | E45: 38 | F45: 45 | G45: 83 | I45: 42 | J45: 42 | K45: 84 | L45: =SUM(G45+K45) -> 167
A46: 45 | B46: Maxwell | C46: Brud | D46: Waunakee | E46: 41 | F46: 44 | G46: 85 | I46: 40 | J46: 43 | K46: 83 | L46: =SUM(G46+K46) -> 168
A47: 46 | B47: Tyler | C47: Schick | D47: Sun Prairie | E47: 41 | F47: 44 | G47: 85 | I47: 40 | J47: 43 | K47: 83 | L47: =SUM(G47+K47) -> 168
A48: 47 | B48: Jack | C48: Tonnessen | D48: Germantown | E48: 39 | F48: 43 | G48: 82 | I48: 41 | J48: 45 | K48: 86 | L48: =SUM(G48+K48) -> 168
A49: 48 | B49: TJ | C49: Walton | D49: Badger | E49: 42 | F49: 40 | G49: 82 | I49: 41 | J49: 45 | K49: 86 | L49: =SUM(G49+K49) -> 168
A50: 49 | B50: Colton | C50: Craig | D50: Badger | E50: 40 | F50: 39 | G50: 79 | I50: 47 | J50: 42 | K50: 89 | L50: =SUM(G50+K50) -> 168
A51: 50 | B51: Andrew | C51: Case | D51: Germantown | E51: 43 | F51: 45 | G51: 88 | I51: 41 | J51: 40 | K51: 81 | L51: =SUM(G51+K51) -> 169
A52: 51 | B52: Al | C52: Deang | D52: Edgewood | E52: 46 | F52: 42 | G52: 88 | I52: 42 | J52: 40 | K52: 82 | L52: =SUM(G52+K52) -> 170
A53: 52 | B53: Finn | C53: Somers | D53: Wauwatosa East | E53: 42 | F53: 46 | G53: 88 | I53: 40 | J53: 42 | K53: 82 | L53: =SUM(G53+K53) -> 170
A54: 53 | B54: Michael | C54: Yesbeck | D54: Edgewood | E54: 44 | F54: 43 | G54: 87 | I54: 38 | J54: 45 | K54: 83 | L54: =SUM(G54+K54) -> 170
A55: 54 | B55: Hunter | C55: Thibert | D55: Homestead | E55: 45 | F55: 49 | G55: 94 | I55: 37 | J55: 40 | K55: 77 | L55: =SUM(G55+K55) -> 171
A56: 55 | B56: Alex | C56: Buckoski | D56: Kaukauna | E56: 40 | F56: 46 | G56: 86 | I56: 42 | J56: 43 | K56: 85 | L56: =SUM(G56+K56) -> 171
A57: 56 | B57: Luke | C57: Abram | D57: Badger | E57: 40 | F57: 42 | G57: 82 | I57: 45 | J57: 44 | K57: 89 | L57: =SUM(G57+K57) -> 171
A58: 57 | B58: Luke | C58: LaFond | D58: Bay Port | E58: 45 | F58: 48 | G58: 93 | I58: 38 | J58: 41 | K58: 79 | L58: =SUM(G58+K58) -> 172
A59: 58 | B59: Camden | C59: Schmidt | D59: Germantown | E59: 42 | F59: 48 | G59: 90 | I59: 40 | J59: 42 | K59: 82 | L59: =SUM(G59+K59) -> 172
A60: 59 | B60: Abbey | C60: Beranek | D60: Bay Port Girls | E60: 47 | F60: 42 | G60: 89 | I60: 44 | J60: 39 | K60: 83 | L60: =SUM(G60+K60) -> 172
A61: 60 | B61: Ben | C61: Knaus | D61: Plymouth | E61: 45 | F61: 41 | G61: 86 | I61: 45 | J61: 41 | K61: 86 | L61: =SUM(G61+K61) -> 172
A62: 61 | B62: Will | C62: Meganck | D62: Waunakee | E62: 38 | F62: 46 | G62: 84 | I62: 40 | J62: 48 | K62: 88 | L62: =SUM(G62+K62) -> 172
A63: 62 | B63: Kyle | C63: Larson | D63: Sheboygan North | E63: 41 | F63: 47 | G63: 88 | I63: 39 | J63: 46 | K63: 85 | L63: =SUM(G63+K63) -> 173
A64: 63 | B64: Nicholas | C64: Kolar | D64: Sheboygan South | E64: 44 | F64: 40 | G64: 84 | I64: 44 | J64: 45 | K64: 89 | L64: =SUM(G64+K64) -> 173
A65: 64 | B65: Riley | C65: Simonz | D65: Marquette | E65: 48 | F65: 44 | G65: 92 | I65: 42 | J65: 40 | K65: 82 | L65: =SUM(G65+K65) -> 174
A66: 65 | B66: Charles | C66: Jaye | D66: Edgewood | E66: 47 | F66: 42 | G66: 89 | I66: 44 | J66: 41 | K66: 85 | L66: =SUM(G66+K66) -> 174
A67: 66 | B67: Landon | C67: Stanislowski | D67: Manitowoc Lincoln | E67: 43 | F67: 45 | G67: 88 | I67: 44 | J67: 42 | K67: 86 | L67: =SUM(G67+K67) -> 174
A68: =A67+1 -> 67 | B68: Hannah | C68: Miller | D68: Sheboygan North Girls | E68: 42 | F68: 44 | G68: 86 | I68: 43 | J68: 45 | K68: 88 | L68: =SUM(G68+K68) -> 174
A69: 68 | B69: Ben | C69: Soboleski | D69: Wauwatosa East | E69: 47 | F69: 44 | G69: 91 | I69: 41 | J69: 43 | K69: 84 | L69: =SUM(G69+K69) -> 175
A70: 69 | B70: Grady | C70: Coppo | D70: De Pere | E70: 43 | F70: 45 | G70: 88 | I70: 42 | J70: 45 | K70: 87 | L70: =SUM(G70+K70) -> 175
A71: 70 | B71: Ethan | C71: Thomas | D71: Stevens Point | E71: 43 | F71: 45 | G71: 88 | I71: 41 | J71: 46 | K71: 87 | L71: =SUM(G71+K71) -> 175
A72: 71 | B72: Evan | C72: Bagwell | D72: Brookfield Central | E72: 42 | F72: 44 | G72: 86 | I72: 45 | J72: 44 | K72: 89 | L72: =SUM(G72+K72) -> 175
A73: 72 | B73: Oliver | C73: Maleki | D73: Homestead | E73: 43 | F73: 42 | G73: 85 | I73: 44 | J73: 46 | K73: 90 | L73: =SUM(G73+K73) -> 175
A74: 73 | B74: Triston | C74: Behrend | D74: Notre Dame | E74: 43 | F74: 46 | G74: 89 | I74: 45 | J74: 42 | K74: 87 | L74: =SUM(G74+K74) -> 176
A75: 74 | B75: Nolan | C75: Henry | D75: Hamilton | E75: 43 | F75: 45 | G75: 88 | I75: 42 | J75: 46 | K75: 88 | L75: =SUM(G75+K75) -> 176
A76: 75 | B76: Tyler | C76: Schroeder | D76: Mukwonago | E76: 42 | F76: 44 | G76: 86 | I76: 42 | J76: 48 | K76: 90 | L76: =SUM(G76+K76) -> 176
A77: 76 | B77: Sam | C77: Schneider | D77: Notre Dame | E77: 45 | F77: 48 | G77: 93 | I77: 42 | J77: 42 | K77: 84 | L77: =SUM(G77+K77) -> 177
A78: 77 | B78: Devin | C78: Evraets | D78: Mukwonago | E78: 46 | F78: 43 | G78: 89 | I78: 40 | J78: 48 | K78: 88 | L78: =SUM(G78+K78) -> 177
A79: 78 | B79: Hogan | C79: Miller | D79: Sheboygan North | E79: 46 | F79: 43 | G79: 89 | I79: 44 | J79: 44 | K79: 88 | L79: =SUM(G79+K79) -> 177
A80: 79 | B80: Evan | C80: Harmann | D80: De Pere | E80: 44 | F80: 50 | G80: 94 | I80: 42 | J80: 42 | K80: 84 | L80: =SUM(G80+K80) -> 178
A81: 80 | B81: Charlie | C81: Schott | D81: Notre Dame | E81: 48 | F81: 44 | G81: 92 | I81: 41 | J81: 45 | K81: 86 | L81: =SUM(G81+K81) -> 178
A82: 81 | B82: Declan | C82: Cooley | D82: Marquette | E82: 45 | F82: 46 | G82: 91 | I82: 43 | J82: 44 | K82: 87 | L82: =SUM(G82+K82) -> 178
A83: 82 | B83: Tyson | C83: Miller | D83: Slinger | E83: 41 | F83: 50 | G83: 91 | I83: 41 | J83: 46 | K83: 87 | L83: =SUM(G83+K83) -> 178
A84: 83 | B84: Connor | C84: Vannes | D84: Bay Port | E84: 48 | F84: 49 | G84: 97 | I84: 40 | J84: 42 | K84: 82 | L84: =SUM(G84+K84) -> 179
A85: 84 | B85: August | C85: Johnson | D85: Waunakee | E85: 42 | F85: 51 | G85: 93 | I85: 40 | J85: 46 | K85: 86 | L85: =SUM(G85+K85) -> 179
A86: 85 | B86: Adalyn | C86: Johnston | D86: Bay Port Girls | E86: 45 | F86: 45 | G86: 90 | I86: 46 | J86: 43 | K86: 89 | L86: =SUM(G86+K86) -> 179
A87: 86 | B87: Parker | C87: Reinhart | D87: Sheboygan North | E87: 43 | F87: 47 | G87: 90 | I87: 45 | J87: 44 | K87: 89 | L87: =SUM(G87+K87) -> 179
A88: 87 | B88: Jayden | C88: Lee | D88: Middleton Boys | E88: 45 | F88: 50 | G88: 95 | I88: 42 | J88: 43 | K88: 85 | L88: =SUM(G88+K88) -> 180
A89: 88 | B89: Austyn | C89: Zuelke | D89: Bay Port | E89: 49 | F89: 46 | G89: 95 | I89: 42 | J89: 43 | K89: 85 | L89: =SUM(G89+K89) -> 180
A90: 89 | B90: Nolan | C90: Thompson | D90: Menomonee Falls | E90: 47 | F90: 48 | G90: 95 | I90: 41 | J90: 45 | K90: 86 | L90: =SUM(G90+K90) -> 181
A91: 90 | B91: Christian | C91: Wagner | D91: Hamilton | E91: 50 | F91: 45 | G91: 95 | I91: 44 | J91: 42 | K91: 86 | L91: =SUM(G91+K91) -> 181
A92: 91 | B92: Matthew | C92: Zagar | D92: Hartford Union | E92: 49 | F92: 44 | G92: 93 | I92: 41 | J92: 47 | K92: 88 | L92: =SUM(G92+K92) -> 181
A93: 92 | B93: Owen | C93: Van Galen | D93: Waukesha South | E93: 45 | F93: 47 | G93: 92 | I93: 44 | J93: 45 | K93: 89 | L93: =SUM(G93+K93) -> 181
A94: 93 | B94: Milanne | C94: Dahmen | D94: Middleton Girls | E94: 45 | F94: 45 | G94: 90 | I94: 49 | J94: 42 | K94: 91 | L94: =SUM(G94+K94) -> 181
A95: 94 | B95: Sammy | C95: Yun | D95: Brookfield Central | E95: 42 | F95: 45 | G95: 87 | I95: 49 | J95: 45 | K95: 94 | L95: =SUM(G95+K95) -> 181
A96: 95 | B96: Cal | C96: Matzke | D96: De Pere | E96: 41 | F96: 49 | G96: 90 | I96: 45 | J96: 47 | K96: 92 | L96: =SUM(G96+K96) -> 182
A97: 96 | B97: Zjeneexa | C97: Vang | D97: Sheboygan North Girls | E97: 45 | F97: 43 | G97: 88 | I97: 48 | J97: 46 | K97: 94 | L97: =SUM(G97+K97) -> 182
A98: 97 | B98: Ryan | C98: Avrit | D98: Hamilton | E98: 45 | F98: 48 | G98: 93 | I98: 47 | J98: 43 | K98: 90 | L98: =SUM(G98+K98) -> 183
A99: 98 | B99: Brady | C99: Bleck | D99: Plymouth | E99: 44 | F99: 46 | G99: 90 | I99: 43 | J99: 50 | K99: 93 | L99: =SUM(G99+K99) -> 183
A100: 99 | B100: Brittney | C100: Koeberl | D100: Bay Port Girls | E100: 44 | F100: 48 | G100: 92 | I100: 50 | J100: 42 | K100: 92 | L100: =SUM(G100+K100) -> 184
A101: 100 | B101: Matt | C101: Sheridan | D101: Plymouth | E101: 43 | F101: 48 | G101: 91 | I101: 47 | J101: 46 | K101: 93 | L101: =SUM(G101+K101) -> 184
A102: 101 | B102: Jack | C102: Bondowski | D102: Notre Dame | E102: 45 | F102: 42 | G102: 87 | I102: 52 | J102: 45 | K102: 97 | L102: =SUM(G102+K102) -> 184
A103: 102 | B103: Abby | C103: Busick | D103: De Pere Girls | E103: 49 | F103: 45 | G103: 94 | I103: 43 | J103: 48 | K103: 91 | L103: =SUM(G103+K103) -> 185
A104: 103 | B104: Adam | C104: Binsfeld | D104: Kaukauna | E104: 44 | F104: 45 | G104: 89 | I104: 46 | J104: 50 | K104: 96 | L104: =SUM(G104+K104) -> 185
A105: 104 | B105: Blake | C105: Schultz | D105: Bay Port | E105: 45 | F105: 52 | G105: 97 | I105: 41 | J105: 48 | K105: 89 | L105: =SUM(G105+K105) -> 186
A106: 105 | B106: Alexander | C106: Nustad | D106: Brookfield Central | E106: 44 | F106: 46 | G106: 90 | I106: 50 | J106: 46 | K106: 96 | L106: =SUM(G106+K106) -> 186
A107: 106 | B107: Charles | C107: Johnson | D107: Ashwaubenon | E107: 43 | F107: 46 | G107: 89 | I107: 45 | J107: 52 | K107: 97 | L107: =SUM(G107+K107) -> 186
A108: 107 | B108: Hunter | C108: Wenzel | D108: Hartford Union | E108: 47 | F108: 45 | G108: 92 | I108: 45 | J108: 50 | K108: 95 | L108: =SUM(G108+K108) -> 187
A109: 108 | B109: Ryan | C109: Walczak | D109: Menomonee Falls | E109: 50 | F109: 46 | G109: 96 | I109: 46 | J109: 46 | K109: 92 | L109: =SUM(G109+K109) -> 188
A110: 109 | B110: Quinn | C110: Process | D110: Pulaski | E110: 48 | F110: 47 | G110: 95 | I110: 49 | J110: 44 | K110: 93 | L110: =SUM(G110+K110) -> 188
A111: 110 | B111: Collin | C111: McDowell | D111: Fond du Lac | E111: 46 | F111: 50 | G111: 96 | I111: 46 | J111: 47 | K111: 93 | L111: =SUM(G111+K111) -> 189
A112: 111 | B112: Christopher | C112: Bakken | D112: Badger | E112: 45 | F112: 54 | G112: 99 | I112: 43 | J112: 48 | K112: 91 | L112: =SUM(G112+K112) -> 190
A113: 112 | B113: Carson | C113: Schultz | D113: Neenah | E113: 46 | F113: 52 | G113: 98 | I113: 47 | J113: 45 | K113: 92 | L113: =SUM(G113+K113) -> 190
A114: 113 | B114: Cody | C114: Schmidt | D114: Germantown | E114: 46 | F114: 55 | G114: 101 | I114: 50 | J114: 40 | K114: 90 | L114: =SUM(G114+K114) -> 191
A115: 114 | B115: Oliver | C115: Peck | D115: Nicolet | E115: 52 | F115: 50 | G115: 102 | I115: 48 | J115: 42 | K115: 90 | L115: =SUM(G115+K115) -> 192
A116: 115 | B116: Konor | C116: Tignall | D116: Bay Port | E116: 48 | F116: 49 | G116: 97 | I116: 47 | J116: 48 | K116: 95 | L116: =SUM(G116+K116) -> 192
A117: 116 | B117: Bryce | C117: Brettingen | D117: Rice Lake | E117: 48 | F117: 51 | G117: 99 | I117: 48 | J117: 46 | K117: 94 | L117: =SUM(G117+K117) -> 193
A118: 117 | B118: Will | C118: Carl | D118: Kaukauna | E118: 49 | F118: 55 | G118: 104 | I118: 46 | J118: 44 | K118: 90 | L118: =SUM(G118+K118) -> 194
A119: 118 | B119: Collin | C119: Fritsch | D119: Kaukauna | E119: 54 | F119: 48 | G119: 102 | I119: 45 | J119: 47 | K119: 92 | L119: =SUM(G119+K119) -> 194
A120: 119 | B120: Owen | C120: Beumler | D120: Sheboygan South | E120: 46 | F120: 51 | G120: 97 | I120: 47 | J120: 50 | K120: 97 | L120: =SUM(G120+K120) -> 194
A121: 120 | B121: Jameson | C121: Junge | D121: Nicolet | E121: 47 | F121: 49 | G121: 96 | I121: 53 | J121: 45 | K121: 98 | L121: =SUM(G121+K121) -> 194
A122: 121 | B122: Davin | C122: Hauck | D122: Rice Lake | E122: 48 | F122: 46 | G122: 94 | I122: 51 | J122: 49 | K122: 100 | L122: =SUM(G122+K122) -> 194
A123: 122 | B123: Bergen | C123: Wagner | D123: Ashwaubenon | E123: 47 | F123: 52 | G123: 99 | I123: 47 | J123: 49 | K123: 96 | L123: =SUM(G123+K123) -> 195
A124: 123 | B124: Alex | C124: Gonzalez | D124: West Bend East | E124: 46 | F124: 50 | G124: 96 | I124: 52 | J124: 47 | K124: 99 | L124: =SUM(G124+K124) -> 195
A125: 124 | B125: Evan | C125: Spaeth | D125: West Bend West | E125: 48 | F125: 48 | G125: 96 | I125: 49 | J125: 50 | K125: 99 | L125: =SUM(G125+K125) -> 195
A126: 125 | B126: Noah | C126: Schneider | D126: Kaukauna | E126: 45 | F126: 50 | G126: 95 | I126: 53 | J126: 47 | K126: 100 | L126: =SUM(G126+K126) -> 195
A127: 126 | B127: Matteo | C127: Troka | D127: Plymouth | E127: 53 | F127: 52 | G127: 105 | I127: 42 | J127: 49 | K127: 91 | L127: =SUM(G127+K127) -> 196
A128: 127 | B128: Patrick | C128: Kerrigan | D128: Hartford Union | E128: 47 | F128: 56 | G128: 103 | I128: 46 | J128: 47 | K128: 93 | L128: =SUM(G128+K128) -> 196
A129: 128 | B129: Alex | C129: Oehrlein | D129: Sun Prairie | E129: 48 | F129: 50 | G129: 98 | I129: 50 | J129: 48 | K129: 98 | L129: =SUM(G129+K129) -> 196
A130: 129 | B130: Matt | C130: Thill | D130: West Bend East | E130: 52 | F130: 46 | G130: 98 | I130: 50 | J130: 48 | K130: 98 | L130: =SUM(G130+K130) -> 196
A131: 130 | B131: Elijah | C131: Oitzinger | D131: Neenah | E131: 45 | F131: 54 | G131: 99 | I131: 51 | J131: 47 | K131: 98 | L131: =SUM(G131+K131) -> 197
A132: =A131+1 -> 131 | B132: Connor | C132: Novitski | D132: Green Bay Preble | E132: 53 | F132: 44 | G132: 97 | I132: 51 | J132: 49 | K132: 100 | L132: =SUM(G132+K132) -> 197
A133: 132 | B133: Caleb | C133: Alles | D133: Wauwatosa East | E133: 54 | F133: 49 | G133: 103 | I133: 46 | J133: 49 | K133: 95 | L133: =SUM(G133+K133) -> 198
A134: 133 | B134: Jacob | C134: Hollfelder | D134: Sun Prairie | E134: 46 | F134: 56 | G134: 102 | I134: 44 | J134: 52 | K134: 96 | L134: =SUM(G134+K134) -> 198
A135: 134 | B135: Bergen | C135: Resnick | D135: Rice Lake | E135: 49 | F135: 53 | G135: 102 | I135: 46 | J135: 50 | K135: 96 | L135: =SUM(G135+K135) -> 198
A136: 135 | B136: Jordan | C136: Draws | D136: Sun Prairie | E136: 47 | F136: 50 | G136: 97 | I136: 45 | J136: 56 | K136: 101 | L136: =SUM(G136+K136) -> 198
A137: 136 | B137: Austin | C137: Soli | D137: Green Bay Preble | E137: 48 | F137: 49 | G137: 97 | I137: 52 | J137: 49 | K137: 101 | L137: =SUM(G137+K137) -> 198
A138: 137 | B138: Owen | C138: Martin | D138: Slinger | E138: 51 | F138: 53 | G138: 104 | I138: 46 | J138: 49 | K138: 95 | L138: =SUM(G138+K138) -> 199
A139: 138 | B139: Tristan | C139: Helgeson | D139: West Bend West | E139: 50 | F139: 51 | G139: 101 | I139: 48 | J139: 51 | K139: 99 | L139: =SUM(G139+K139) -> 200
A140: 139 | B140: Patrick | C140: Kennedy | D140: Green Bay Preble | E140: 48 | F140: 47 | G140: 95 | I140: 51 | J140: 54 | K140: 105 | L140: =SUM(G140+K140) -> 200
A141: 140 | B141: Zachary | C141: Greenhill | D141: Slinger | E141: 47 | F141: 59 | G141: 106 | I141: 46 | J141: 50 | K141: 96 | L141: =SUM(G141+K141) -> 202
A142: 141 | B142: Hayden | C142: Brickley | D142: Sheboygan South | E142: 51 | F142: 54 | G142: 105 | I142: 48 | J142: 49 | K142: 97 | L142: =SUM(G142+K142) -> 202
A143: 142 | B143: Logan | C143: Elliott | D143: Manitowoc Lincoln | E143: 50 | F143: 53 | G143: 103 | I143: 50 | J143: 49 | K143: 99 | L143: =SUM(G143+K143) -> 202
A144: 143 | B144: Ethan | C144: Ladd | D144: Waukesha South | E144: 50 | F144: 50 | G144: 100 | I144: 48 | J144: 54 | K144: 102 | L144: =SUM(G144+K144) -> 202
A145: 144 | B145: Jake | C145: Wertz | D145: Menomonee Falls | E145: 48 | F145: 59 | G145: 107 | I145: 49 | J145: 49 | K145: 98 | L145: =SUM(G145+K145) -> 205
A146: 145 | B146: Jordan | C146: Zuge | D146: Pulaski | E146: 51 | F146: 55 | G146: 106 | I146: 48 | J146: 52 | K146: 100 | L146: =SUM(G146+K146) -> 206
A147: 146 | B147: Isaac | C147: Margelowsky | D147: West Bend East | E147: 50 | F147: 48 | G147: 98 | I147: 55 | J147: 54 | K147: 109 | L147: =SUM(G147+K147) -> 207
A148: 147 | B148: Alec | C148: Reichwald | D148: Green Bay Preble | E148: 51 | F148: 54 | G148: 105 | I148: 51 | J148: 53 | K148: 104 | L148: =SUM(G148+K148) -> 209
A149: 148 | B149: Cam | C149: Devine | D149: Brookfield Central | E149: 58 | F149: 52 | G149: 110 | I149: 52 | J149: 49 | K149: 101 | L149: =SUM(G149+K149) -> 211
A150: 149 | B150: Boden | C150: Memmel | D150: West Bend East | E150: 41 | F150: 65 | G150: 106 | I150: 49 | J150: 56 | K150: 105 | L150: =SUM(G150+K150) -> 211
A151: 150 | B151: Ethan | C151: Harbridge | D151: Fond du Lac | E151: 59 | F151: 45 | G151: 104 | I151: 58 | J151: 49 | K151: 107 | L151: =SUM(G151+K151) -> 211
A152: 151 | B152: Braydon | C152: Ahlberg | D152: Rice Lake | E152: 53 | F152: 57 | G152: 110 | I152: 51 | J152: 51 | K152: 102 | L152: =SUM(G152+K152) -> 212
A153: 152 | B153: JJ | C153: Paider | D153: Neenah | E153: 48 | F153: 51 | G153: 99 | I153: 59 | J153: 54 | K153: 113 | L153: =SUM(G153+K153) -> 212
A154: 153 | B154: Jared | C154: Abraham | D154: Plymouth | E154: 51 | F154: 53 | G154: 104 | I154: 54 | J154: 55 | K154: 109 | L154: =SUM(G154+K154) -> 213
A155: 154 | B155: Joe | C155: Held | D155: West Bend West | E155: 51 | F155: 52 | G155: 103 | I155: 55 | J155: 56 | K155: 111 | L155: =SUM(G155+K155) -> 214
A156: 155 | B156: Kieran | C156: Doherty | D156: West Bend East | E156: 51 | F156: 52 | G156: 103 | I156: 52 | J156: 61 | K156: 113 | L156: =SUM(G156+K156) -> 216
A157: 156 | B157: Luke | C157: Abing | D157: Neenah | E157: 56 | F157: 58 | G157: 114 | I157: 48 | J157: 55 | K157: 103 | L157: =SUM(G157+K157) -> 217
A158: 157 | B158: Ty | C158: McGreevy | D158: Badger | E158: 49 | F158: 56 | G158: 105 | I158: 60 | J158: 52 | K158: 112 | L158: =SUM(G158+K158) -> 217
A159: 158 | B159: Kayla | C159: Hendrikse | D159: Sheboygan North Girls | E159: 52 | F159: 51 | G159: 103 | I159: 59 | J159: 55 | K159: 114 | L159: =SUM(G159+K159) -> 217
A160: 159 | B160: Casey | C160: McCormick | D160: Waukesha South | E160: 61 | F160: 48 | G160: 109 | I160: 49 | J160: 60 | K160: 109 | L160: =SUM(G160+K160) -> 218
A161: 160 | B161: Nathan | C161: Carlson | D161: West Bend West | E161: 56 | F161: 57 | G161: 113 | I161: 51 | J161: 55 | K161: 106 | L161: =SUM(G161+K161) -> 219
A162: 161 | B162: Henry | C162: Wright | D162: Fond du Lac | E162: 54 | F162: 53 | G162: 107 | I162: 55 | J162: 58 | K162: 113 | L162: =SUM(G162+K162) -> 220
A163: 162 | B163: Trevor | C163: Geldnich | D163: Kewaskum | E163: 56 | F163: 60 | G163: 116 | I163: 49 | J163: 56 | K163: 105 | L163: =SUM(G163+K163) -> 221
A164: 163 | B164: Nicholas | C164: Rienstra | D164: Sun Prairie | E164: 52 | F164: 62 | G164: 114 | I164: 51 | J164: 56 | K164: 107 | L164: =SUM(G164+K164) -> 221
A165: 164 | B165: Elijah | C165: Berrong | D165: Waukesha South | E165: 61 | F165: 58 | G165: 119 | I165: 50 | J165: 54 | K165: 104 | L165: =SUM(G165+K165) -> 223
A166: 165 | B166: Alaina | C166: Johnson | D166: De Pere Girls | E166: 58 | F166: 59 | G166: 117 | I166: 52 | J166: 54 | K166: 106 | L166: =SUM(G166+K166) -> 223
A167: 166 | B167: Ethan | C167: Fisher | D167: Stevens Point | E167: 54 | F167: 57 | G167: 111 | I167: 57 | J167: 55 | K167: 112 | L167: =SUM(G167+K167) -> 223
A168: 167 | B168: Connor | C168: Watson | D168: Nicolet | E168: 56 | F168: 51 | G168: 107 | I168: 59 | J168: 57 | K168: 116 | L168: =SUM(G168+K168) -> 223
A169: 168 | B169: Daniel | C169: Stein | D169: Nicolet | E169: 58 | F169: 57 | G169: 115 | I169: 55 | J169: 55 | K169: 110 | L169: =SUM(G169+K169) -> 225
A170: 169 | B170: Andrew | C170: Zick | D170: Waukesha South | E170: 55 | F170: 61 | G170: 116 | I170: 49 | J170: 61 | K170: 110 | L170: =SUM(G170+K170) -> 226
A171: 170 | B171: Alex | C171: Rusch | D171: Fond du Lac | E171: 50 | F171: 53 | G171: 103 | I171: 64 | J171: 59 | K171: 123 | L171: =SUM(G171+K171) -> 226
A172: 171 | B172: Thomas | C172: Stegemann | D172: Manitowoc Lincoln | E172: 61 | F172: 60 | G172: 121 | I172: 56 | J172: 50 | K172: 106 | L172: =SUM(G172+K172) -> 227
A173: 172 | B173: Jacob | C173: Kozelek | D173: Stevens Point | E173: 60 | F173: 52 | G173: 112 | I173: 53 | J173: 63 | K173: 116 | L173: =SUM(G173+K173) -> 228
A174: 173 | B174: Kenyon | C174: Place | D174: Sheboygan North Girls | E174: 58 | F174: 51 | G174: 109 | I174: 61 | J174: 58 | K174: 119 | L174: =SUM(G174+K174) -> 228
A175: 174 | B175: Zach | C175: Cykana | D175: Sheboygan South | E175: 63 | F175: 67 | G175: 130 | I175: 48 | J175: 51 | K175: 99 | L175: =SUM(G175+K175) -> 229
A176: 175 | B176: Connor | C176: Griesemer | D176: Kewaskum | E176: 58 | F176: 58 | G176: 116 | I176: 52 | J176: 64 | K176: 116 | L176: =SUM(G176+K176) -> 232
A177: 176 | B177: Ava | C177: Salmon | D177: De Pere Girls | E177: 59 | F177: 71 | G177: 130 | I177: 54 | J177: 55 | K177: 109 | L177: =SUM(G177+K177) -> 239
A178: 177 | B178: Caroline | C178: Ramminger | D178: Manitowoc Lincoln | E178: 63 | F178: 61 | G178: 124 | I178: 60 | J178: 60 | K178: 120 | L178: =SUM(G178+K178) -> 244
A179: 178 | B179: Matthew | C179: Leonhard | D179: Sheboygan South | E179: 60 | F179: 67 | G179: 127 | I179: 61 | J179: 57 | K179: 118 | L179: =SUM(G179+K179) -> 245
A180: 179 | B180: Isaiah | C180: Tirado | D180: Nicolet | E180: 72 | F180: 54 | G180: 126 | I180: 55 | J180: 65 | K180: 120 | L180: =SUM(G180+K180) -> 246
A181: 180 | B181: Lucy | C181: Meeuwsen | D181: De Pere Girls | E181: 64 | F181: 70 | G181: 134 | I181: 73 | J181: 63 | K181: 136 | L181: =SUM(G181+K181) -> 270
A182: 181 | B182: Holden | C182: Serwe | D182: Kewaskum | E182: 61 | F182: 67 | G182: 128 | I182: 65 | J182: 78 | K182: 143 | L182: =SUM(G182+K182) -> 271
A183: 182 | B183: Jackson | C183: Fleischman | D183: Kewaskum | E183: 67 | F183: 74 | G183: 141 | I183: 66 | J183: 67 | K183: 133 | L183: =SUM(G183+K183) -> 274
A184: 183 | B184: Brody | C184: Kral | D184: Kewaskum | E184: 72 | F184: 65 | G184: 137 | I184: 70 | J184: 68 | K184: 138 | L184: =SUM(G184+K184) -> 275
B185: AJ | C185: Earnest | D185: Stevens Point | E185: 50 | F185: 51 | G185: 101 | I185: 48 | J185: 55 | K185: DQ | L185: DQ
B186: Evan | C186: Spaulding | D186: Sheboygan North | E186: 42 | F186: 40 | G186: 82
B187: Collin | C187: Thomey | D187: Germantown | E187: 44 | F187: 38 | G187: 82
B188: Cooper | C188: Barry | D188: Mukwonago | E188: 45 | F188: 47 | G188: 92
B189: Will | C189: Acker | D189: Kettle Moraine | E189: 40 | F189: 53 | G189: 93
B190: Jackson | C190: Cross | D190: Marquette | E190: 45 | F190: 48 | G190: 93
B191: Kole | C191: Altergott | D191: Ashwaubenon | E191: 51 | F191: 48 | G191: 99
B192: Patrick | C192: Heil | D192: Green Bay Preble | E192: 47 | F192: 52 | G192: 99
B193: Cole | C193: Hoffman | D193: Hamilton | E193: 53 | F193: 47 | G193: 100
B194: Connor | C194: Burant | D194: Pulaski | E194: 50 | F194: 54 | G194: 104
B195: Quinn | C195: Albrecht | D195: Hartford Union | E195: 51 | F195: 56 | G195: 107
B196: Andrew | C196: Ford | D196: Hartford Union | E196: 56 | F196: 58 | G196: 114
B197: Nick | C197: Brunsch | D197: Mukwonago | E197: 57 | F197: 59 | G197: 116
B198: Matthew | C198: Lindsley | D198: Pulaski | E198: 60 | F198: 62 | G198: 122
B199: Parker | C199: Besaw | D199: Pulaski | E199: 64 | F199: 61 | G199: 125
B200: Joshua | C200: Boldt | D200: Manitowoc Lincoln | E200: 64 | F200: 73 | G200: 137
... 15 more rows

Sheet Team Results
A1: Sheboygan North Invite 2021
A2: Place | B2: Team | C2: Day 1 | D2: Day 2 | E2: Total
A3: 1 | B3: Kettle Moraine | C3: =E3-D3 -> 309 | D3: 301 | E3: 610
A4: 2 | B4: Middleton Boys | C4: =E4-D4 -> 315 | D4: 303 | E4: 618
A5: =A4+1 -> 3 | B5: Homestead | C5: 319 | D5: 306 | E5: 625
A6: =A5+1 -> 4 | B6: Middleton Girls | C6: 319 | D6: 308 | E6: 627
A7: 5 | B7: Bay Port Girls | C7: 340 | D7: 314 | E7: 654
A8: 6 | B8: Marquette | C8: 335 | D8: 326 | E8: 661
A9: 7 | B9: Waunakee | C9: 334 | D9: 329 | E9: 663
A10: 8 | B10: De Pere | C10: 340 | D10: 324 | E10: 664
A11: 9 | B11: Sheboygan North | C11: 337 | D11: 330 | E11: 667
A12: 10 | B12: Edgewood | C12: 341 | D12: 328 | E12: 669
A13: 11 | B13: Wauwatosa East/West | C13: 341 | D13: 332 | E13: 673
A14: 12 | B14: Notre Dame | C14: 346 | D14: 334 | E14: 680
A15: 13 | B15: Germantown | C15: 342 | D15: 339 | E15: 681
A16: 14 | B16: Slinger | C16: 345 | D16: 341 | E16: 686
A17: 15 | B17: Menomonee Falls | C17: 354 | D17: 337 | E17: 691
A18: 16 | B18: Badger | C18: 342 | D18: 355 | E18: 697
A19: 17 | B19: Mukwonago | C19: 351 | D19: 348 | E19: 699
A20: 18 | B20: Hamilton | C20: 356 | D20: 345 | E20: 701
A21: 19 | B21: Brookfield Central | C21: 342 | D21: 360 | E21: 702
A22: 20 | B22: Ashwaubenon | C22: 340 | D22: 363 | E22: 703
A23: 21 | B23: Bay Port | C23: 382 | D23: 335 | E23: 717
A24: 22 | B24: Sheboygan North Girls | C24: 355 | D24: 374 | E24: 729
A25: 23 | B25: Plymouth | C25: 371 | D25: 363 | E25: 734
A26: 24 | B26: Kaukauna | C26: 372 | D26: 363 | E26: 735
A27: 25 | B27: Rice Lake | C27: 373 | D27: 369 | E27: 742
A28: 26 | B28: Neenah | C28: 379 | D28: 377 | E28: 756
A29: 27 | B29: Sun Prairie | C29: 382 | D29: 378 | E29: 760
A30: 28 | B30: Hartford Union | C30: 395 | D30: 371 | E30: 766
A31: 29 | B31: Stevens Point | C31: 384 | D31: 391 | E31: 775
A32: 30 | B32: Fond du Lac | C32: 391 | D32: 391 | E32: 782
A33: 31 | B33: Sheboygan South | C33: 413 | D33: 382 | E33: 795
A34: 32 | B34: Green Bay Preble | C34: 388 | D34: 409 | E34: 797
A35: 33 | B35: West Bend East | C35: 395 | D35: 411 | E35: 806
A36: 34 | B36: Pulaski | C36: 427 | D36: 383 | E36: 810
A37: 35 | B37: De Pere Girls | C37: 427 | D37: 387 | E37: 814
A38: 36 | B38: Waukesha South | C38: 417 | D38: 404 | E38: 821
A39: =A38+1 -> 37 | B39: West Bend West | C39: 413 | D39: 415 | E39: 828
A40: 38 | B40: Nicolet | C40: 420 | D40: 414 | E40: 834
A41: 39 | B41: Manitowowc Lincoln | C41: 436 | D41: 411 | E41: 847
A42: 40 | B42: Kewaskum | C42: 497 | D42: 492 | E42: 989
